[Event "DMP Ekstraliga 2020"]
[Site "Krakow"]
[Date "2020.08.28"]
[Round "3.28"]
[White "Kosakowski, Jakub"]
[Black "Grabarczyk, Miroslaw"]
[Result "0-1"]
[ECO "C22"]
[WhiteElo "2418"]
[BlackElo "2368"]
[Annotator "ChessBase"]
[PlyCount "88"]
[EventDate "2020.08.26"]
[EventType "team-tourn"]
[EventCountry "POL"]
[SourceTitle "playchess.com"]
[Source "ChessBase"]
[SourceQuality "1"]
[TimeControl "30/5400+30:1800+30"]

1. e4 {[%emt 0:00:00]} e5 {[%emt 0:00:46]} 2. d4 {[%emt 0:00:22]} exd4 {[%emt 0:00:23]} 3. Qxd4 {[%emt 0:00:10]} Nc6 {[%emt 0:00:45]} 4. Qc4 {[%emt 0:00:09]} Nf6 {[%emt 0:05:04]} 5. Nc3 {[%emt 0:00:39]} Bb4 {[%emt 0:00:28]} 6. Bd2 {[%emt 0:00:13]} O-O {[%emt 0:01:01]} 7. O-O-O {[%emt 0:00:09]} Re8 {[%emt 0:02:35]} 8. f3 {[%emt 0:01:33]} a6 {[%emt 0:01:31]} 9. g4 {[%emt 0:07:12]} b5 {[%emt 0:02:42]} 10. Qe2 {[%emt 0:01:27]} d5 {[%emt 0:14:46]} 11. g5 {[%emt 0:07:23]} Bxc3 {[%emt 0:01:02]} 12. Bxc3 {[%emt 0:00:08]} Nh5 {[%emt 0:00:07]} 13. Qg2 {[%emt 0:00:12]} b4 {[%emt 0:16:58]} 14. Bd2 {[%emt 0:19:59]} Qd6 {[%emt 0:03:35]} 15. Ne2 {[%emt 0:01:16]} Be6 {[%emt 0:02:30]} 16. Ng3 {[%emt 0:01:33]} Nf4 {[%emt 0:00:30]} 17. Qf2 {[%emt 0:00:13]} d4 {[%emt 0:02:52]} 18. e5 {[%emt 0:36:01]} Qxe5 {[%emt 0:00:53]} 19. Re1 {[%emt 0:00:26]} Qxg5 {[%emt 0:00:43]} 20. Re4 {[%emt 0:00:39]} Qa5 {[%emt 0:00:34]} 21. Bxf4 {[%emt 0:00:09]} Qxa2 {[%emt 0:00:45]} 22. Bd3 {[%emt 0:01:43]} Qa1+ {[%emt 0:03:27]} 23. Kd2 {[%emt 0:02:01]} Qxb2 {[%emt 0:00:08]} 24. Nh5 {[%emt 0:01:29]} Qc3+ {[%emt 0:09:01]} 25. Kd1 {[%emt 0:01:52]} Qa1+ {[%emt 0:04:43]} 26. Bc1 {[%emt 0:01:59]} Ne7 {[%emt 0:01:58]} 27. Ke2 {[%emt 0:10:26]} Qc3 {[%emt 0:02:20]} 28. Nxg7 {[%emt 0:02:28]} Bc4 {[%emt 0:02:04]} 29. Bd2 {[%emt 0:02:06]} Qxc2 {[%emt 0:00:17]} 30. Bxc4 {[%emt 0:00:29]} Qxc4+ {[%emt 0:00:09]} 31. Kd1 {[%emt 0:30:20]} Kxg7 {[%emt 0:31:14]} 32. Qh4 {[%emt 0:00:33]} Ng6 {[%emt 0:02:35]} 33. Bh6+ {[%emt 0:00:34]} Kg8 {[%emt 0:00:14]} 34. Qf6 {[%emt 0:00:05]} Qd3+ {[%emt 0:00:28]} 35. Kc1 {[%emt 0:00:11]} Qc3+ {[%emt 0:01:46]} 36. Kb1 {[%emt 0:00:15]} d3 {[%emt 0:01:51]} 37. Rd4 {[%emt 0:00:41]} Qb3+ {[%emt 0:02:56]} 38. Ka1 {[%emt 0:00:02]} Qc3+ {[%emt 0:00:30]} 39. Kb1 {[%emt 0:00:02]} Re1+ {[%emt 0:02:11]} 40. Rxe1 {[%emt 0:00:00]} Qxe1+ {[%emt 0:00:00]} 41. Bc1 {[%emt 0:00:00]} Qe6 {[%emt 0:00:00]} 42. Rd8+ {[%emt 0:00:00]} Rxd8 {[%emt 0:00:00]} 43. Qxd8+ {[%emt 0:00:00]} Nf8 {[%emt 0:00:00]} 44. Bb2 {[%emt 0:00:00]} c5 {[%emt 0:00:00]} 0-1

[Event "DMP Ekstraliga 2020"]
[Site "Krakow"]
[Date "2020.08.28"]
[Round "3.29"]
[White "Sabuk, Piotr"]
[Black "Walter, Szymon"]
[Result "0-1"]
[ECO "C02"]
[WhiteElo "2377"]
[BlackElo "2288"]
[Annotator "ChessBase"]
[PlyCount "80"]
[EventDate "2020.08.26"]
[EventType "team-tourn"]
[EventCountry "POL"]
[SourceTitle "playchess.com"]
[Source "ChessBase"]
[SourceQuality "1"]
[TimeControl "30/5400+30:1800+30"]

1. d4 {[%emt 0:00:00]} e6 {[%emt 0:00:03]} 2. e4 {[%emt 0:01:09]} d5 {[%emt 0:00:07]} 3. e5 {[%emt 0:00:16]} c5 {[%emt 0:00:15]} 4. c3 {[%emt 0:00:05]} Nc6 {[%emt 0:00:25]} 5. Nf3 {[%emt 0:00:11]} Qb6 {[%emt 0:00:35]} 6. a3 {[%emt 0:00:16]} cxd4 {[%emt 0:01:19]} 7. cxd4 {[%emt 0:01:01]} Bd7 {[%emt 0:04:33]} 8. Nc3 {[%emt 0:06:20]} Rc8 {[%emt 0:08:00]} 9. Na4 {[%emt 0:09:12]} Qd8 {[%emt 0:01:00]} 10. b4 {[%emt 0:05:41]} b6 {[%emt 0:00:12]} 11. Ba6 {[%emt 0:04:09]} Rc7 {[%emt 0:00:27]} 12. O-O {[%emt 0:08:02]} Nge7 {[%emt 0:07:23]} 13. Bb2 {[%emt 0:02:42]} Nf5 {[%emt 0:03:42]} 14. Nc3 Bc8 {[%emt 0:02:45]} 15. Be2 {[%emt 0:05:42]} Be7 16. Rc1 Bd7 {[%emt 0:02:10]} 17. Ba6 {[%emt 0:15:02]} Bc8 {[%emt 0:07:50]} 18. Bd3 {[%emt 0:02:09]} Bb7 {[%emt 0:06:29]} 19. Qa4 {[%emt 0:05:55]} O-O 20. Ne2 {[%emt 0:04:36]} Qd7 {[%emt 0:10:42]} 21. Qd1 {[%emt 0:07:56]} Rfc8 {[%emt 0:09:48]} 22. Qd2 {[%emt 0:00:45]} Qd8 {[%emt 0:17:42]} 23. g3 {[%emt 0:03:22]} g6 {[%emt 0:02:18]} 24. Kg2 {[%emt 0:01:26]} Bf8 {[%emt 0:01:09]} 25. Rc2 {[%emt 0:06:50]} Bg7 26. h4 {[%emt 0:01:14]} Qe7 {[%emt 0:09:55]} 27. Rh1 {[%emt 0:08:11]} f6 {[%emt 0:00:32]} 28. g4 {[%emt 0:00:30]} fxe5 {[%emt 0:00:30]} 29. dxe5 {[%emt 0:00:15]} Nh6 {[%emt 0:01:56]} 30. Kg3 {[%emt 0:01:17]} d4 {[%emt 0:00:43]} 31. Rhc1 {[%emt 0:30:32]} Nxe5 {[%emt 0:30:33]} 32. Nxe5 {[%emt 0:00:29]} Bxe5+ {[%emt 0:00:05]} 33. f4 {[%emt 0:00:07]} Bg7 {[%emt 0:00:27]} 34. Nxd4 {[%emt 0:00:54]} e5 {[%emt 0:00:53]} 35. Rxc7 {[%emt 0:00:37]} Rxc7 {[%emt 0:00:07]} 36. Bc4+ {[%emt 0:00:34]} Kh8 {[%emt 0:00:24]} 37. Ne6 {[%emt 0:00:30]} Rxc4 {[%emt 0:01:16]} 38. Rxc4 {[%emt 0:00:25]} Qxe6 {[%emt 0:00:04]} 39. Qd8+ {[%emt 0:00:20]} Ng8 {[%emt 0:00:07]} 40. Rc2 {[%emt 0:00:00]} Qb3+ {[%emt 0:00:00]} 0-1

[Event "DMP Ekstraliga 2020"]
[Site "Krakow"]
[Date "2020.08.28"]
[Round "3.30"]
[White "Sliwicka, Alicja"]
[Black "Bulmaga, Irina"]
[Result "1/2-1/2"]
[ECO "B33"]
[WhiteElo "2317"]
[BlackElo "2434"]
[Annotator "ChessBase"]
[PlyCount "48"]
[EventDate "2020.08.26"]
[EventType "team-tourn"]
[EventCountry "POL"]
[SourceTitle "playchess.com"]
[Source "ChessBase"]
[SourceQuality "1"]
[TimeControl "30/5400+30:1800+30"]

1. e4 {[%emt 0:00:00]} c5 {[%emt 0:00:35]} 2. Nf3 {[%emt 0:00:00]} Nc6 {[%emt 0:00:07]} 3. d4 {[%emt 0:00:00]} cxd4 {[%emt 0:00:07]} 4. Nxd4 {[%emt 0:00:00]} Nf6 {[%emt 0:00:07]} 5. Nc3 {[%emt 0:00:09]} e5 {[%emt 0:00:08]} 6. Ndb5 {[%emt 0:00:21]} d6 {[%emt 0:00:09]} 7. Bg5 {[%emt 0:00:30]} a6 {[%emt 0:00:22]} 8. Na3 {[%emt 0:00:38]} b5 {[%emt 0:00:14]} 9. Bxf6 {[%emt 0:00:38]} gxf6 {[%emt 0:00:08]} 10. Nd5 {[%emt 0:00:17]} f5 {[%emt 0:00:24]} 11. Bd3 {[%emt 0:00:48]} Be6 {[%emt 0:01:00]} 12. O-O {[%emt 0:00:42]} Bxd5 {[%emt 0:00:06]} 13. exd5 {[%emt 0:00:14]} Ne7 {[%emt 0:00:07]} 14. c4 {[%emt 0:03:32]} e4 {[%emt 0:01:35]} 15. Be2 {[%emt 0:01:34]} Bg7 {[%emt 0:00:08]} 16. Qd2 {[%emt 0:02:33]} O-O {[%emt 0:00:56]} 17. cxb5 {[%emt 0:07:26]} axb5 {[%emt 0:00:28]} 18. Nxb5 {[%emt 0:02:18]} Ng6 {[%emt 0:02:17]} 19. f4 {[%emt 0:14:16]} Ra5 {[%emt 0:21:37]} 20. Kh1 {[%emt 0:07:05]} Qa8 {[%emt 0:10:38]} 21. Nc7 {[%emt 0:03:11]} Qa7 {[%emt 0:03:57]} 22. Nb5 {[%emt 0:00:46]} Qa8 {[%emt 0:09:40]} 23. Nc7 {[%emt 0:03:03]} Qa7 {[%emt 0:02:09]} 24. Nb5 {[%emt 0:00:07]} Qa8 {[%emt 0:03:15]} 1/2-1/2

[Event "DMP Ekstraliga 2020"]
[Site "Krakow"]
[Date "2020.08.29"]
[Round "4.1"]
[White "Kryvoruchko, Yuriy"]
[Black "Klekowski, Maciej"]
[Result "1-0"]
[ECO "C65"]
[WhiteElo "2682"]
[BlackElo "2511"]
[Annotator "ChessBase"]
[PlyCount "42"]
[EventDate "2020.08.26"]
[EventType "team-tourn"]
[EventCountry "POL"]
[SourceTitle "playchess.com"]
[Source "ChessBase"]
[SourceQuality "1"]
[WhiteTeam "Stilon Gorzow"]
[BlackTeam "UKS 21 Podlesie"]
[TimeControl "30/5400+30:1800+30"]

1. e4 {[%emt 0:00:00]} e5 {[%emt 0:00:00]} 2. Nf3 {[%emt 0:00:00]} Nc6 {[%emt 0:00:00]} 3. Bb5 {[%emt 0:00:00]} Nf6 {[%emt 0:00:00]} 4. d3 {[%emt 0:01:09]} Bc5 {[%emt 0:00:11]} 5. Bxc6 {[%emt 0:02:03]} dxc6 {[%emt 0:00:22]} 6. Nbd2 {[%emt 0:00:07]} O-O {[%emt 0:00:21]} 7. Qe2 {[%emt 0:00:48]} Nd7 {[%emt 0:10:28]} 8. Nc4 {[%emt 0:00:14]} Re8 {[%emt 0:05:38]} 9. Rg1 {[%emt 0:01:40]} a5 {[%emt 0:02:59]} 10. g4 {[%emt 0:01:30]} b5 {[%emt 0:09:18]} 11. Ne3 {[%emt 0:00:14]} Bf8 {[%emt 0:08:24]} 12. Nf5 {[%emt 0:12:04]} Nc5 {[%emt 0:00:59]} 13. h4 {[%emt 0:04:58]} b4 {[%emt 0:27:46]} 14. h5 {[%emt 0:01:08]} a4 {[%emt 0:09:31]} 15. h6 {[%emt 0:06:40]} g6 {[%emt 0:00:19]} 16. Ng7 {[%emt 0:00:04]} Re7 {[%emt 0:05:44]} 17. Bg5 {[%emt 0:00:56]} Qd6 {[%emt 0:03:54]} 18. Nf5 {[%emt 0:07:51]} gxf5 {[%emt 0:05:36]} 19. gxf5 {[%emt 0:00:44]} Kh8 {[%emt 0:00:24]} 20. Nd2 {[%emt 0:04:36]} Ba6 {[%emt 0:01:05]} 21. Qg4 {[%emt 0:03:41]} Bxh6 {[%emt 0:03:15]} 1-0

[Event "DMP Ekstraliga 2020"]
[Site "Krakow"]
[Date "2020.08.29"]
[Round "4.2"]
[White "Teclaf, Pawel"]
[Black "Bluebaum, Matthias"]
[Result "0-1"]
[ECO "C07"]
[WhiteElo "2454"]
[BlackElo "2647"]
[Annotator "ChessBase"]
[PlyCount "64"]
[EventDate "2020.08.26"]
[EventType "team-tourn"]
[EventCountry "POL"]
[SourceTitle "playchess.com"]
[Source "ChessBase"]
[SourceQuality "1"]
[WhiteTeam "UKS 21 Podlesie"]
[BlackTeam "Stilon Gorzow"]
[TimeControl "30/5400+30:1800+30"]

1. e4 {[%emt 0:00:00]} e6 {[%emt 0:00:00]} 2. d4 {[%emt 0:00:00]} d5 {[%emt 0:00:00]} 3. Nd2 {[%emt 0:00:00]} c5 {[%emt 0:00:00]} 4. Ngf3 {[%emt 0:00:00]} cxd4 {[%emt 0:00:06]} 5. Nxd4 {[%emt 0:00:00]} Nf6 {[%emt 0:00:11]} 6. exd5 {[%emt 0:00:00]} Nxd5 {[%emt 0:00:04]} 7. N2f3 {[%emt 0:00:00]} Bb4+ {[%emt 0:02:23]} 8. Bd2 {[%emt 0:00:00]} O-O {[%emt 0:00:06]} 9. Bxb4 {[%emt 0:00:01]} Nxb4 {[%emt 0:00:07]} 10. c3 {[%emt 0:00:02]} Nd5 {[%emt 0:03:59]} 11. Bc4 {[%emt 0:01:18]} b6 {[%emt 0:03:50]} 12. O-O {[%emt 0:00:03]} Bb7 {[%emt 0:02:40]} 13. Re1 {[%emt 0:00:02]} Nc6 {[%emt 0:09:15]} 14. Nxc6 {[%emt 0:12:51]} Bxc6 {[%emt 0:00:05]} 15. Qd4 {[%emt 0:00:20]} Nf6 {[%emt 0:04:43]} 16. Qf4 {[%emt 0:08:30]} b5 {[%emt 0:08:13]} 17. Nd4 {[%emt 0:10:15]} Bxg2 {[%emt 0:09:05]} 18. Bxe6 {[%emt 0:00:53]} Bb7 {[%emt 0:15:10]} 19. Bb3 {[%emt 0:06:58]} Nh5 {[%emt 0:00:48]} 20. Qe5 {[%emt 0:27:03]} Qh4 {[%emt 0:03:26]} 21. f3 {[%emt 0:03:51]} Bxf3 {[%emt 0:12:15]} 22. Nxf3 {[%emt 0:00:05]} Qg4+ {[%emt 0:00:03]} 23. Kf2 {[%emt 0:00:03]} Nf4 {[%emt 0:00:03]} 24. Qxb5 {[%emt 0:09:23]} Rad8 {[%emt 0:06:51]} 25. Nd4 {[%emt 0:09:06]} Qg2+ {[%emt 0:02:14]} 26. Ke3 {[%emt 0:00:01]} g5 {[%emt 0:00:05]} 27. Rg1 {[%emt 0:00:50]} Rfe8+ {[%emt 0:00:59]} 28. Be6 {[%emt 0:01:35]} Rxe6+ {[%emt 0:02:50]} 29. Nxe6 {[%emt 0:00:07]} Qd2+ {[%emt 0:00:41]} 30. Kf3 {[%emt 0:02:44]} Rd3+ {[%emt 0:01:09]} 31. Kg4 {[%emt 0:31:19]} h5+ {[%emt 0:34:05]} 32. Kf5 {[%emt 0:00:04]} Rd5+ {[%emt 0:00:08]} 0-1

[Event "DMP Ekstraliga 2020"]
[Site "Krakow"]
[Date "2020.08.29"]
[Round "4.3"]
[White "Krasenkow, Michal"]
[Black "Barski, Radoslaw"]
[Result "1/2-1/2"]
[ECO "E90"]
[WhiteElo "2605"]
[BlackElo "2444"]
[Annotator "ChessBase"]
[PlyCount "70"]
[EventDate "2020.08.26"]
[EventType "team-tourn"]
[EventCountry "POL"]
[SourceTitle "playchess.com"]
[Source "ChessBase"]
[SourceQuality "1"]
[WhiteTeam "Stilon Gorzow"]
[BlackTeam "UKS 21 Podlesie"]
[TimeControl "30/5400+30:1800+30"]

1. d4 {[%emt 0:00:00]} Nf6 {[%emt 0:00:00]} 2. c4 {[%emt 0:00:00]} g6 {[%emt 0:00:00]} 3. Nc3 {[%emt 0:00:00]} Bg7 {[%emt 0:00:00]} 4. e4 {[%emt 0:00:00]} d6 {[%emt 0:00:00]} 5. Nf3 {[%emt 0:00:00]} O-O {[%emt 0:00:00]} 6. h3 {[%emt 0:00:00]} e5 {[%emt 0:00:05]} 7. d5 {[%emt 0:00:00]} a5 {[%emt 0:00:09]} 8. Bg5 {[%emt 0:00:00]} Na6 {[%emt 0:00:06]} 9. Be2 {[%emt 0:00:04]} Nc5 {[%emt 0:00:13]} 10. Nd2 {[%emt 0:00:05]} Bd7 {[%emt 0:00:07]} 11. O-O {[%emt 0:01:15]} h6 {[%emt 0:00:06]} 12. Be3 {[%emt 0:00:04]} Nh7 {[%emt 0:00:08]} 13. Nb3 {[%emt 0:00:04]} b6 {[%emt 0:05:34]} 14. Nxc5 {[%emt 0:00:11]} bxc5 {[%emt 0:00:12]} 15. Qd2 {[%emt 0:00:05]} h5 {[%emt 0:04:49]} 16. f4 {[%emt 0:03:50]} exf4 {[%emt 0:00:50]} 17. Bxf4 {[%emt 0:00:24]} Rb8 {[%emt 0:10:57]} 18. Rf3 {[%emt 0:05:52]} g5 {[%emt 0:21:24]} 19. Be3 {[%emt 0:11:48]} g4 {[%emt 0:00:26]} 20. Rff1 {[%emt 0:03:30]} gxh3 {[%emt 0:02:53]} 21. g3 {[%emt 0:10:51]} Qe7 {[%emt 0:10:38]} 22. Bf4 {[%emt 0:07:43]} f5 {[%emt 0:21:31]} 23. exf5 {[%emt 0:01:13]} Bxf5 {[%emt 0:00:24]} 24. Rae1 {[%emt 0:01:28]} Bd4+ {[%emt 0:02:16]} 25. Kh1 {[%emt 0:00:33]} Qf7 {[%emt 0:06:20]} 26. Bh6 {[%emt 0:03:17]} Bg7 {[%emt 0:00:28]} 27. Bd3 {[%emt 0:10:22]} Qg6 {[%emt 0:00:19]} 28. Rxf5 {[%emt 0:02:59]} Rxf5 {[%emt 0:00:37]} 29. Bxg7 {[%emt 0:00:19]} Kxg7 {[%emt 0:00:35]} 30. Nb5 {[%emt 0:07:38]} Qg5 {[%emt 0:04:32]} 31. Qxg5+ {[%emt 0:42:53]} Rxg5 {[%emt 0:30:05]} 32. Re7+ {[%emt 0:00:06]} Kf6 {[%emt 0:00:07]} 33. Re6+ {[%emt 0:10:36]} Kg7 {[%emt 0:00:22]} 34. Re7+ {[%emt 0:00:05]} Kf6 {[%emt 0:00:10]} 35. Re6+ {[%emt 0:00:41]} Kg7 1/2-1/2

[Event "DMP Ekstraliga 2020"]
[Site "Krakow"]
[Date "2020.08.29"]
[Round "4.4"]
[White "Kosakowski, Jakub"]
[Black "Kanarek, Marcel"]
[Result "0-1"]
[ECO "B50"]
[WhiteElo "2418"]
[BlackElo "2488"]
[Annotator "ChessBase"]
[PlyCount "58"]
[EventDate "2020.08.26"]
[EventType "team-tourn"]
[EventCountry "POL"]
[SourceTitle "playchess.com"]
[Source "ChessBase"]
[SourceQuality "1"]
[WhiteTeam "UKS 21 Podlesie"]
[BlackTeam "Stilon Gorzow"]
[TimeControl "30/5400+30:1800+30"]

1. e4 {[%emt 0:00:00]} c5 {[%emt 0:00:00]} 2. Nf3 {[%emt 0:00:00]} d6 {[%emt 0:00:00]} 3. c3 {[%emt 0:00:03]} Nf6 {[%emt 0:00:00]} 4. Be2 {[%emt 0:00:08]} g6 {[%emt 0:02:11]} 5. O-O {[%emt 0:00:16]} Bg7 {[%emt 0:00:11]} 6. Bb5+ {[%emt 0:00:11]} Nc6 {[%emt 0:08:46]} 7. d4 {[%emt 0:01:49]} Qb6 {[%emt 0:02:44]} 8. Ba4 {[%emt 0:04:53]} cxd4 {[%emt 0:02:17]} 9. cxd4 {[%emt 0:03:16]} O-O {[%emt 0:00:58]} 10. d5 {[%emt 0:03:01]} Na5 {[%emt 0:03:56]} 11. Nc3 {[%emt 0:03:06]} Bd7 {[%emt 0:03:23]} 12. Bc2 {[%emt 0:19:11]} Rfc8 {[%emt 0:12:41]} 13. h3 {[%emt 0:00:43]} Nc4 {[%emt 0:01:18]} 14. Rb1 {[%emt 0:02:26]} Qa5 {[%emt 0:12:28]} 15. Nd4 {[%emt 0:12:09]} b5 {[%emt 0:03:45]} 16. b4 {[%emt 0:22:46]} Qb6 {[%emt 0:00:52]} 17. Re1 {[%emt 0:00:17]} Rc7 {[%emt 0:29:16]} 18. a4 {[%emt 0:01:37]} a6 {[%emt 0:01:50]} 19. Bb3 {[%emt 0:15:18]} bxa4 {[%emt 0:04:39]} 20. Bxa4 {[%emt 0:01:15]} Ng4 {[%emt 0:00:57]} 21. e5 {[%emt 0:06:41]} Bxe5 {[%emt 0:03:01]} 22. Re4 {[%emt 0:00:47]} Bf5 {[%emt 0:04:59]} 23. Rf4 {[%emt 0:01:04]} Bxf4 {[%emt 0:00:20]} 24. hxg4 {[%emt 0:00:28]} Bxb1 {[%emt 0:00:31]} 25. Bxf4 {[%emt 0:00:02]} Nb2 {[%emt 0:00:22]} 26. Qxb1 {[%emt 0:00:16]} Qxd4 {[%emt 0:00:34]} 27. Ne2 {[%emt 0:00:30]} Qxb4 {[%emt 0:00:32]} 28. Bc6 {[%emt 0:00:02]} Rb8 {[%emt 0:00:22]} 29. g5 {[%emt 0:01:16]} Nc4 {[%emt 0:00:43]} 0-1

[Event "DMP Ekstraliga 2020"]
[Site "Krakow"]
[Date "2020.08.29"]
[Round "4.5"]
[White "Janik, Igor"]
[Black "Walter, Szymon"]
[Result "1-0"]
[ECO "E62"]
[WhiteElo "2471"]
[BlackElo "2288"]
[Annotator "ChessBase"]
[PlyCount "91"]
[EventDate "2020.08.26"]
[EventType "team-tourn"]
[EventCountry "POL"]
[SourceTitle "playchess.com"]
[Source "ChessBase"]
[SourceQuality "1"]
[WhiteTeam "Stilon Gorzow"]
[BlackTeam "UKS 21 Podlesie"]
[TimeControl "30/5400+30:1800+30"]

1. c4 {[%emt 0:00:00]} Nf6 {[%emt 0:00:24]} 2. g3 {[%emt 0:00:00]} g6 {[%emt 0:00:48]} 3. Bg2 {[%emt 0:00:00]} Bg7 {[%emt 0:00:26]} 4. Nc3 {[%emt 0:00:00]} O-O {[%emt 0:01:37]} 5. d4 {[%emt 0:00:00]} d6 {[%emt 0:02:18]} 6. Nf3 {[%emt 0:00:48]} Nc6 {[%emt 0:01:29]} 7. O-O {[%emt 0:00:09]} Bg4 {[%emt 0:02:42]} 8. Ne1 {[%emt 0:00:08]} e5 {[%emt 0:11:12]} 9. d5 {[%emt 0:00:06]} Ne7 {[%emt 0:00:35]} 10. f3 {[%emt 0:00:16]} Bd7 {[%emt 0:03:19]} 11. e4 {[%emt 0:00:08]} h5 {[%emt 0:03:54]} 12. Nd3 {[%emt 0:01:14]} c6 {[%emt 0:06:44]} 13. Be3 {[%emt 0:02:20]} cxd5 {[%emt 0:05:12]} 14. cxd5 {[%emt 0:00:15]} b5 {[%emt 0:03:26]} 15. Qb3 {[%emt 0:03:14]} a5 {[%emt 0:09:10]} 16. Rfc1 {[%emt 0:03:32]} Qb8 {[%emt 0:03:21]} 17. Bf1 {[%emt 0:03:11]} Kh7 {[%emt 0:10:05]} 18. Nf2 {[%emt 0:07:14]} b4 {[%emt 0:02:41]} 19. Na4 {[%emt 0:00:37]} Bxa4 {[%emt 0:07:15]} 20. Qxa4 {[%emt 0:00:11]} Bh6 {[%emt 0:00:06]} 21. f4 {[%emt 0:02:51]} exf4 {[%emt 0:01:29]} 22. gxf4 {[%emt 0:00:35]} Nfxd5 {[%emt 0:06:55]} 23. exd5 {[%emt 0:00:13]} Nxd5 {[%emt 0:00:07]} 24. Bd4 {[%emt 0:07:12]} Nxf4 {[%emt 0:02:38]} 25. Ne4 {[%emt 0:03:03]} Bg7 {[%emt 0:00:17]} 26. Qd1 {[%emt 0:02:23]} d5 {[%emt 0:08:59]} 27. Ng5+ {[%emt 0:04:57]} Kg8 {[%emt 0:00:36]} 28. Bxg7 {[%emt 0:00:13]} Kxg7 {[%emt 0:00:05]} 29. Qd4+ {[%emt 0:00:08]} Kh6 {[%emt 0:00:48]} 30. Nf3 {[%emt 0:03:26]} Re8 {[%emt 0:03:08]} 31. Re1 {[%emt 0:30:27]} Rxe1 {[%emt 0:31:48]} 32. Rxe1 {[%emt 0:00:05]} Qa7 {[%emt 0:00:22]} 33. Kf2 {[%emt 0:02:45]} g5 {[%emt 0:01:17]} 34. Qxa7 {[%emt 0:02:09]} Rxa7 {[%emt 0:00:03]} 35. Nd4 {[%emt 0:00:07]} Rc7 {[%emt 0:00:57]} 36. Kf3 {[%emt 0:04:03]} Kg6 {[%emt 0:00:17]} 37. h4 {[%emt 0:01:27]} f6 {[%emt 0:00:40]} 38. Bb5 {[%emt 0:01:25]} Rc5 {[%emt 0:00:43]} 39. Re7 {[%emt 0:00:37]} f5 {[%emt 0:01:03]} 40. Be8+ {[%emt 0:00:00]} Kf6 {[%emt 0:00:00]} 41. Rf7+ {[%emt 0:00:00]} Ke5 {[%emt 0:00:00]} 42. Nc6+ {[%emt 0:00:00]} Rxc6 {[%emt 0:00:00]} 43. Bxc6 {[%emt 0:00:00]} g4+ {[%emt 0:00:00]} 44. Kg3 {[%emt 0:00:00]} Ne2+ {[%emt 0:00:00]} 45. Kf2 {[%emt 0:00:00]} Nd4 {[%emt 0:00:00]} 46. Bb7 {[%emt 0:00:00]} 1-0

[Event "DMP Ekstraliga 2020"]
[Site "Krakow"]
[Date "2020.08.29"]
[Round "4.6"]
[White "Sliwicka, Alicja"]
[Black "Antolak, Julia"]
[Result "0-1"]
[ECO "B54"]
[WhiteElo "2317"]
[BlackElo "2323"]
[Annotator "NA"]
[PlyCount "104"]
[EventDate "2020.08.26"]
[EventType "team-tourn"]
[EventCountry "POL"]
[SourceTitle "playchess.com"]
[Source "ChessBase"]
[SourceQuality "1"]
[WhiteTeam "UKS 21 Podlesie"]
[BlackTeam "Stilon Gorzow"]
[TimeControl "30/5400+30:1800+30"]

1. e4 {[%emt 0:00:00]} c5 {[%emt 0:00:00]} 2. Nf3 {[%emt 0:00:00]} d6 {[%emt 0:00:00]} 3. d4 {[%emt 0:00:00]} cxd4 {[%emt 0:00:00]} 4. Nxd4 {[%emt 0:00:00]} Nf6 {[%emt 0:00:00]} 5. f3 {[%emt 0:00:00]} e5 {[%emt 0:00:35]} 6. Nb3 {[%emt 0:00:09]} d5 {[%emt 0:00:37]} 7. Bg5 {[%emt 0:00:10]} d4 {[%emt 0:00:08]} 8. c3 {[%emt 0:00:15]} Nc6 {[%emt 0:00:24]} 9. Bb5 {[%emt 0:01:38]} h6 {[%emt 0:00:33]} 10. Bxf6 {[%emt 0:02:25]} Qxf6 {[%emt 0:00:50]} 11. cxd4 {[%emt 0:02:45]} Bb4+ {[%emt 0:04:22]} 12. N1d2 {[%emt 0:05:10]} exd4 {[%emt 0:04:01]} 13. O-O {[%emt 0:05:20]} O-O {[%emt 0:02:20]} 14. Qe2 {[%emt 0:04:23] [#]} (14. f4 $11) 14... d3 $1 {[%emt 0:11:41]} 15. Qe3 {[%emt 0:23:01]} Rd8 {[%emt 0:07:08]} 16. Rfd1 {[%emt 0:10:11]} Be6 {[%emt 0:08:08]} 17. f4 {[%emt 0:06:01]} (17. Bxc6 $17 bxc6 18. e5) 17... Qxb2 $19 {[%emt 0:07:19]} 18. f5 {[%emt 0:16:46]} Bxb3 {[%emt 0:05:55]} 19. Nxb3 {[%emt 0:00:24]} d2 {[%emt 0:01:58]} 20. Bc4 {[%emt 0:04:56]} Qe5 {[%emt 0:08:04]} 21. Kh1 {[%emt 0:02:35]} Nd4 {[%emt 0:07:09]} 22. Qd3 {[%emt 0:08:21]} Rac8 {[%emt 0:08:05]} 23. Bd5 {[%emt 0:01:28]} Nxf5 {[%emt 0:03:04]} 24. Nxd2 {[%emt 0:00:59]} Bxd2 {[%emt 0:06:37]} 25. Qxd2 {[%emt 0:00:14]} Ne7 {[%emt 0:00:53]} 26. Rab1 {[%emt 0:01:13]} Nxd5 {[%emt 0:01:46]} 27. exd5 {[%emt 0:00:24]} Rc5 {[%emt 0:00:43]} 28. Qf2 {[%emt 0:02:12]} b6 {[%emt 0:02:25]} 29. Rf1 {[%emt 0:00:55]} Qxd5 {[%emt 0:00:56]} 30. Rbe1 {[%emt 0:00:06]} Rc7 {[%emt 0:01:12]} 31. h3 {[%emt 0:30:16]} Rdc8 {[%emt 0:30:21]} 32. Re2 {[%emt 0:02:34]} Rc1 {[%emt 0:01:20]} 33. Rfe1 {[%emt 0:00:04]} Rxe1+ {[%emt 0:00:23]} 34. Qxe1 {[%emt 0:00:16]} Rd8 {[%emt 0:00:33]} 35. Qf2 {[%emt 0:00:29]} b5 {[%emt 0:01:28]} 36. Re7 {[%emt 0:01:03]} a5 {[%emt 0:00:23]} 37. Ra7 {[%emt 0:00:39]} a4 {[%emt 0:00:42]} 38. a3 {[%emt 0:00:22]} Rc8 {[%emt 0:00:52]} 39. Qg3 {[%emt 0:00:57]} Qd4 {[%emt 0:04:07]} 40. Re7 {[%emt 0:00:00]} Rc1+ {[%emt 0:00:00]} 41. Re1 {[%emt 0:00:00]} Rxe1+ {[%emt 0:00:00]} 42. Qxe1 {[%emt 0:00:00]} Qc4 {[%emt 0:00:00]} 43. Kh2 {[%emt 0:00:00]} b4 {[%emt 0:00:00]} 44. Qe8+ {[%emt 0:00:00]} Kh7 {[%emt 0:00:00]} 45. Qxa4 {[%emt 0:00:00]} Qf4+ {[%emt 0:00:00]} 46. Kh1 {[%emt 0:00:00]} Qc1+ {[%emt 0:00:00]} 47. Kh2 {[%emt 0:00:00]} bxa3 {[%emt 0:00:00]} 48. Qe4+ {[%emt 0:00:00]} g6 {[%emt 0:00:00]} 49. Qd5 {[%emt 0:00:00]} Qf4+ {[%emt 0:00:00]} 50. Kh1 {[%emt 0:00:00]} Kg7 {[%emt 0:00:00]} 51. Qd1 {[%emt 0:00:00]} Qf6 {[%emt 0:00:00]} 52. Qb1 {[%emt 0:00:00]} Qb2 {[%emt 0:00:00]} 0-1